Cogmind - Beta 15 @@@ ROGUE MODE // 2025.05.25 @ 21:32:12 // Winter2022/Polymind Player: Figgis Result: Destroyed by G-47 Trooper with Particle Gun Performance ------------- Evolutions (0) 0 Regions Visited (2) 400 Robots Destroyed (17) 85 Value Destroyed (414) 414 Prototype IDs (2) 40 Alien Tech Used (0) 0 Bonus (1210) 1210 TOTAL SCORE: 1839 Bonus ------- Polymind Skill 1210 Cogmind --------- Core Integrity 0/250 Matter 0/0 Energy 192/200 System Corruption 0% Temperature Cool (9) Movement Walking (120) Location -10/Mines Parts ------- > --- POWER (1) -------- Ion Engine > --- PROPULSION (2) --- Aluminum Leg Aluminum Leg > --- UTILITY (1) ------ Heat Sink > --- WEAPON (1) ------- Small Laser > --- INVENTORY (1) ---- (None) Peak State ------------ > --- POWER ------------ Ion Engine > --- PROPULSION ------- Aluminum Leg Aluminum Leg > --- UTILITY ---------- Heat Sink > --- WEAPON ----------- Small Laser > --- INVENTORY -------- (None) [Rating: 5] Favorites ----------- Power Ion Engine Engine Ion Engine Propulsion Aluminum Leg Leg Aluminum Leg Flight Unit Flight Unit Utility Heat Sink Device Heat Sink Weapon Small Laser Energy Gun Small Laser Ballistic Gun Light Assault Rifle Build | -11 -10 -10 ------- Run | Yrd Mat Min Slots Evolved . | . . . Power . | . . . Propulsion . | . . . Utility . | . . . Weapon . | . . . Parts Attached . | . . . Power . | . . . Engine . | . . . Core . | . . . Reactor . | . . . Propulsion . | . . . Treads . | . . . Leg . | . . . Wheel . | . . . Hover . | . . . Flight . | . . . Utility . | . . . Device . | . . . Storage . | . . . Processor . | . . . Hackware . | . . . Protection . | . . . Artifact . | . . . Weapon . | . . . Energy Gun . | . . . Energy Cannon . | . . . Ballistic Gun . | . . . Ballistic Cannon . | . . . Launcher . | . . . Special Weapon . | . . . Impact Weapon . | . . . Slashing Weapon . | . . . Piercing Weapon . | . . . Special Melee Weapon . | . . . Unidentified Prototypes . | . . . Parts Lost 2 | . 1 1 Power 1 | . . 1 Propulsion 1 | . 1 . Utility . | . . . Weapon . | . . . Highest Loss Streak 1 | . 1 1 To Critical Strikes . | . . . Average Backups . | . . . Power . | . . . Propulsion . | . . . Utility . | . . . Weapon . | . . . Tool/Special . | . . . Unused Backups . | . . . Power . | . . . Propulsion . | . . . Utility . | . . . Weapon . | . . . Tool/Special . | . . . Average Slot Usage (%) 95 | . 96 92 Engine 18 | . 19 14 Leg 37 | . 36 38 Flight 1 | . 2 . Device 18 | . 18 20 Energy Gun 18 | . 18 20 Peak Build Rating 5 | . 5 5 Average Rating 4 | . 4 4 On Entrance 1 | . . 4 Naked Turns 23 | . 19 4 Heaviest Build 7 | . 7 7 Greatest Support 20 | 3 20 20 Greatest Overweight (x) . | . . . Average Overweight (x) . | . . . Largest Inventory Capacity 1 | . 1 1 Average Capacity . | . . . Most Carried . | . . . Average Carried . | . . . Final Capacity 1 | . 1 1 Final Carried . | . . . Class Distribution -------------------- 94% | Grunt Dominant Class ---------------- Grunt | -10/Materials Grunt | -10/Mines Resources | -11 -10 -10 ----------- Run | Yrd Mat Min Matter Collected . | . . . Remotely . | . . . Salvage Created 345 | . 281 64 Parts 35 | . 29 6 Haulers Intercepted . | . . . Recyclers Shooed 1 | . 1 . Parts Field Recycled . | . . . Retrieved Matter . | . . . Parts Self-Destructed . | . . . Prevented . | . . . Kills | -11 -10 -10 ------- Run | Yrd Mat Min Combat Hostiles Destroyed 12 | . 8 4 Guns 12 | . 8 4 Classes Destroyed 6 | . 6 . Worker 2 | . 2 . Builder 1 | . 1 . Operator 1 | . 1 . Watcher 1 | . 1 . Swarmer 3 | . 3 . Grunt 9 | . 5 4 Best Kill Streak 6 | . 6 1 Combat Bots Only 2 | . 2 1 Max Kills in Single Turn 1 | . 1 1 Gunslinging . | . . . Exploded . | . . . Melee . | . . . Uniques/NPCs Destroyed . | . . . Combat | -11 -10 -10 -------- Run | Yrd Mat Min Hostile Shots Fired 90 | . 56 34 Missed 27 | . 17 10 Hits 63 | . 39 24 Projectile 63 | . 39 24 Critical Strikes 1 | . . 1 Damage Taken 796 | . 432 364 Core 261 | . 143 118 Absorbed by Shields . | . . . Core Remaining (%) 100 | 100 . . Volleys Fired 100 | . 72 28 Largest 1 | . 1 1 Hottest 40 | . 40 40 Shots Fired 100 | . 72 28 Gun 100 | . 72 28 Cannon . | . . . Launcher . | . . . Special . | . . . Kinetic 7 | . 7 . Thermal 93 | . 65 28 Explosive . | . . . Electromagnetic . | . . . Robot Hit Streak 12 | . 12 8 Robot Miss Streak 6 | . 6 2 Penetration Max . | . . . Secondary Targets . | . . . Shots Hit Robots 68 | . 49 19 Core Hits 33 | . 23 10 Critical Kills . | . . . Critical Parts Destroyed . | . . . Critical Strikes . | . . . Melee Attacks . | . . . Impact . | . . . Slashing . | . . . Piercing . | . . . Sneak Attacks . | . . . Combat Hostiles . | . . . Follow-up Attacks . | . . . Damage Inflicted 805 | . 588 217 Guns 805 | . 588 217 Cannons . | . . . Explosions . | . . . Melee . | . . . Ramming . | . . . Kinetic 26 | . 26 . Thermal 779 | . 562 217 Explosive . | . . . Electromagnetic . | . . . Impact . | . . . Slashing . | . . . Piercing . | . . . Highest Corruption . | . . . Average Corruption . | . . . Corruption Purged . | . . . Corruption Blocked . | . . . Overload Shots . | . . . Overflow Damage . | . . . Projectiles . | . . . Explosions . | . . . Melee . | . . . Knockbacks . | . . . Impact . | . . . Kinetic . | . . . Secondary . | . . . Self-Inflicted Damage . | . . . Shots . | . . . Rammed . | . . . Targets Rammed . | . . . Kicked . | . . . Crushed . | . . . Highest Temperature 138 | . 138 81 Average Temperature 35 | . 40 25 Received Heat Transfer 435 | . 216 219 Siege Activations . | . . . Martial Activations . | . . . Shielding Activations . | . . . Robots Disrupted . | . . . Combat Hostiles . | . . . Robots Corrupted . | . . . Combat Hostiles . | . . . Parts Fried . | . . . Impact Corruptions . | . . . Robots Melted . | . . . Combat Hostiles . | . . . Parts Melted 1 | . 1 . Heat Transferred 1675 | . 1200 475 Parts Sabotaged . | . . . Parts Stolen . | . . . Parts Stripped . | . . . Power Chain Reactions . | . . . Alert | -11 -10 -10 ------- Run | Yrd Mat Min Maximum Alert Level . | . . . Low Security (%) 100 | 100 100 100 Level 1 . | . . . Level 2 . | . . . Level 3 . | . . . Level 4 . | . . . Level 5 . | . . . High Security . | . . . Max Security . | . . . Peak Influence 145 | . 145 60 Initial . | . . . Average 57 | . 68 28 Influence Increases 399 | . 269 130 Destroy 0b10 Robot/C 240 | . 160 80 Destroy 0b10 Robot/NC 25 | . 25 . Destroy Leader 62 | . 42 20 Successful Hack 27 | . 27 . Partial Spotted 15 | . 15 . Lose Combat Pursuer 30 | . . 30 Influence Decreases 392 | . 269 123 Time Decay 376 | . 266 110 Lost Part 10 | . . 10 Miscellaneous 6 | . 3 3 Squads Dispatched 3 | . 3 . Investigation . | . . . Extermination . | . . . Reinforcement 3 | . 3 . Assault . | . . . Garrison . | . . . Intercept . | . . . Searches Triggered . | . . . Construction Impeded . | . . . Haulers Reinforced . | . . . Active Scanning Responses . | . . . Cargo Convoy Interrupts . | . . . Stealth | -11 -10 -10 --------- Run | Yrd Mat Min Distress Signals . | . . . Communications Jammed . | . . . Distress Signals . | . . . Times Spotted 37 | . 25 12 Peak Tracking Total 4 | . 4 2 Tactical Retreats 2 | . . 2 Traps | -11 -10 -10 ------- Run | Yrd Mat Min Traps Triggered . | . . . Indirectly . | . . . Trap Hack Attempts . | . . . Triggered . | . . . Disarmed . | . . . Reprogrammed . | . . . Reused . | . . . Traps Extracted . | . . . Installed . | . . . Triggered . | . . . Machines | -11 -10 -10 ---------- Run | Yrd Mat Min Machines Disabled . | . . . Max in Single Turn . | . . . Machines Repaired . | . . . Machines Dismantled . | . . . Machines Sabotaged . | . . . Overloaded Fab Kills . | . . . Hacking | -11 -10 -10 --------- Run | Yrd Mat Min Machines Accessed 5 | . 5 . Terminals 5 | . 5 . Fabricators . | . . . Repair Stations . | . . . Recycling Units . | . . . Scanalyzers . | . . . Garrison Access . | . . . Total Hacks 18 | . 18 . Successful 11 | . 11 . Failed 7 | . 7 . Catastrophic 1 | . 1 . Database Lockouts . | . . . Manual 14 | . 14 . Terminals 18 | . 18 . Fabricators . | . . . Repair Stations . | . . . Recycling Units . | . . . Scanalyzers . | . . . Garrison Access . | . . . Terminal Hacks 11 | . 11 . Robot Analysis 7 | . 7 . Prototype ID Bank 1 | . 1 . Emergency Access Points 1 | . 1 . Locate Traps 1 | . 1 . Reinforcement Status 1 | . 1 . Fabricator Hacks . | . . . Repair Station Hacks . | . . . Recycling Unit Hacks . | . . . Scanalyzer . | . . . Garrison Access Hacks . | . . . Unauthorized Hacks . | . . . Terminals . | . . . Fabricators . | . . . Repair Stations . | . . . Recycling Units . | . . . Scanalyzers . | . . . Garrison Access . | . . . Data Cores Recovered . | . . . Used . | . . . Hacking Detections 5 | . 5 . Full Trace Events . | . . . Feedback Events . | . . . Feedback Blocked . | . . . Robot Schematics Acquired . | . . . Robots Built . | . . . Authchips . | . . . Time . | . . . Total Robot Build Rating . | . . . Part Schematics Acquired . | . . . Parts Built . | . . . Authchips . | . . . Time . | . . . Total Part Build Rating . | . . . Parts Repaired . | . . . Time . | . . . Parts Recycled . | . . . Recycled Matter . | . . . Retrieved Matter . | . . . Retrieved Components . | . . . Parts Scanalyzed . | . . . Part Schematics Acquired . | . . . Parts Damaged . | . . . Bothacking | -11 -10 -10 ------------ Run | Yrd Mat Min Used RIF Installer . | . . . Robots Hacked 4 | . 2 2 Non-combat . | . . . Combat 4 | . 2 2 Robot Hacks Applied 4 | . 2 2 find_shortcuts 4 | . 2 2 Relay Couplers Released . | . . . Fabnet Peak Effective % . | . . . Robots Rewired . | . . . Allies Hacked . | . . . Hacks Repelled . | . . . Allies | -11 -10 -10 -------- Run | Yrd Mat Min Total Allies . | . . . Largest Group . | . . . Highest-Rated Group . | . . . Highest-Rated Ally . | . . . Total Orders . | . . . Ally Attacks . | . . . Total Damage . | . . . Kills . | . . . Allies Corrupted . | . . . Allies Melted . | . . . Intel | -11 -10 -10 ------- Run | Yrd Mat Min Active Infowar (turns) . | . . . Robot Analysis Total 7 | . 7 . Derelict Logs Recovered . | . . . Drone Launches . | . . . Drone Recoveries . | . . . Exploration | -11 -10 -10 ------------- Run | Yrd Mat Min Turns Passed 855 | 9 618 228 Spaces Moved 575 | 18 431 126 Core 56 | 18 34 4 Treads . | . . . Legs 490 | . 368 122 Wheels . | . . . Hover . | . . . Flight 29 | . 29 . Fastest Speed 37 | 50 37 50 Average Speed 108 | 50 108 117 Slowest Speed 120 | 50 120 120 Overloaded Moves . | . . . Propulsion Burnouts . | . . . Robots Hopped 1 | . 1 . Potential Cave-ins . | . . . Cave-ins Triggered . | . . . Exploration Rate (%) 37 | 4 76 31 Regions Visited 2 Branch Regions 1 Pre-discovered Areas . | . . . Known Exits Taken . | . . . Unknown Exits Taken 2 | 1 1 . Scrap Searched 1 | . . 1 Spaces Dug . | . . . Terrain Destroyed . | . . . Melee . | . . . Projectile . | . . . AOE . | . . . Terrain Rammed . | . . . Walls Destroyed . | . . . Machines Disabled . | . . . Actions | -11 -10 -10 --------- Run | Yrd Mat Min Total 704 | 17 508 179 Wait 31 | . 7 24 Move 571 | 17 428 126 Hop 1 | . 1 . Pick Up . | . . . Fast Attach . | . . . Attach . | . . . Detach . | . . . Swap . | . . . Drop . | . . . Fire 100 | . 72 28 Melee . | . . . Ram . | . . . Kick . | . . . Crush . | . . . Escape Stasis . | . . . Rewire 1 | . . 1 Trap . | . . . Miscellaneous . | . . . Route ------- -11/Scrapyard -10/Materials (discovered 4 exits: [*Mat x2] / [*Min x2]) -10/Mines (discovered 1 exit: [*Mat]) History --------- Turn | Location | Event 3 | -11/Scrapyard | Discovered new exit (range 15) 10 | -11/Scrapyard | Entered Materials 80 | -10/Materials | Discovered new exit (range 7) 129 | -10/Materials | Discovered new exit (range 16) 215 | -10/Materials | Core integrity fell below 50% 272 | -10/Materials | Discovered new exit (range 16) 486 | -10/Materials | Discovered new exit (range 15) 610 | -10/Materials | Derelicts attacked the area 628 | -10/Materials | Entered Mines 708 | -10/Mines | Core integrity fell below 20% 761 | -10/Mines | Discovered new exit (range 14) 843 | -10/Mines | Found DCF Scrap (14 items) 856 | -10/Mines | Destroyed by G-47 Trooper with Particle Gun Last Messages --------------- 00772_ G-34 Mercenary reactivates. 00774_ Took control of G-34 Mercenary. 00774_ K-01 Serf collects debris. 00783_ G-34 Mercenary destroyed. 00789_ K-01 Serf collects debris. 00843_ Searching scrap... 00843_ Found Lgt. Ion Engine. 00843_ Found Ion Engine. 00843_ Found Com. Wheel. 00843_ Found Aluminum Leg. 00843_ Found Flight Unit. 00843_ Found Lrg. Matter Pod. 00843_ Found Med. Matter Pod. 00843_ Found Sml. Matter Pod. 00843_ Found EM Pulse Gun. 00843_ Found Beam Cannon. 00843_ Found Lgt. Assault Rifle. 00843_ Found 140 Matter. A note is attached: "With love, from the DCF." 00846_ T-07 Excavator is excavating. Map ----- +----------------------------------------------------+ | ?????????????????????????????????????????? | | ?????????????????????????????????????????? | | ?????????????????????????????????????????? | | ?????????????????????????????????????????? | | ?????????????????????????????????????????? | | ?????????????????????????????????????????? | | ?????????????????????????????????????????? | | ?????????????????????????????????????????? | | ?????????????????????????????????????????? | | ?????????????????????????????????????????? | | ?????????????????????????????????????????? | | ?????????????????????????????????????????? | | ??????????????????????????#??????????????? | | ?????????????????????????# ??????????????? | | ???????????????????????## ??????????????? | | ??????????????????????? ??????????????? | | ???????????????????????? ??????????????? | | ???????????????????????? ??????????????? | | ???????????????????????? ??????????????? | | ???????????????????????? ??????????????? | | ???????????????????????? ??????????????? | | ????????????????????????* #??????????????? | | ????????????????????????#=#??????????????? | | ????????????????????????#!#?????????"????? | | ????????????????????????#[#????? """????? | | ??????????????????????###g##* """????? | | ??????????????????????#=!%g!= #??????????? | | ??????????????????????#=#### #??????????? | | ??????########?##???###*#???? #??????????? | | ?????## ## ##??# #?????t#?????????? | | ?????# #??# ###????????????????? | | ??????# #??# #??????????????????? | | ??###??# #??# #??????????????????? | | ?## ??## ##??# #??????????????????? | | ## ??# ###???# #??????????????????? | | # ### ##?????# #??????????????????? | | # #?###### #??????????????????? | | ## #?# #??????????????????? | | ?## #?# ######??????????????????? | | ??# #### #???##??????????????????? | | ??# #! ### ##?????????????????? | | ??## #?????????????????? | | ???### #?????????????????? | | ?????## ## [ !< #?????????????????? | | ??????## ## [ #?????????????????? | | ???????## ## ! ##?????????????????? | | ????????# ## ########??????????????????? | | ???????## %= #?????????????????????????? | | ???????# ##????????????????????????? | | ###???## ##???????????????????????? | +----------------------------------------------------+ Best States ------------- Heat Dissipation 25 Energy Generation 15 Energy Capacity 200 Matter Stores 98 Matter Capacity 100 Sight Range 16 Terrain Scan Density 10 Evasion (%) 62 Item Schematics ----------------- None Robot Schematics ------------------ None Fabricated ------------ Nothing Repaired ---------- Nothing Alien Tech Used ----------------- None Achievements -------------- None Challenges ------------ None Polymind | -11 -10 -10 ---------- Run | Yrd Mat Min Hosts 4 | . 2 2 Combat Hostiles 4 | . 2 2 Allies . | . . . Unique Host Classes 2 | . 2 . Average Host Suspicion 99 | . 99 98 Unsuspicious Activity 14 | . 7 7 Returns to Shadow . | . . . Fuzzy Dispatches . | . . . Protomatter Created 85 | . 35 50 Used 51 | . 21 30 Decayed 12 | . 12 . Highest Spend 15 | . 15 15 Top 5 Hosts by Kills: G-34 Mercenary (-10/Materials: 6) G-34 Mercenary (-10/Mines: 3) S-10 Pest (-10/Materials: 2) G-34 Mercenary (-10/Mines: 1) Game ------ Seed EtherialFieldthrustUnit Manual? 0 Play Time 00:09:08 Cumulative 151.0 hours Start 2025.05.25 @ 21:24:26 End 2025.05.25 @ 21:32:12 Sessions 1 Manual Loads 0 Difficulty Rogue Special Mode Winter2022/Polymind Game No. 221 Rogue 218 Adventurer 3 Explorer 0 Win Type - Total 1 Types 1/0/0/0/0/0/0/0/0/0 Lore% 35 Gallery% 55 Achievement% 44 Wizard Run 0 Options --------- Layout 0 ASCII 0 Keyboard 0 Movement Mouse Keybinds 0 Fullscreen 2 Font 18/SmallcapsGlow Map View 76x50 Zoom Use 0% Tactical HUD 1 Map Filters NONE Filters NONE Steam 1 RUN: d13822e4-5a06-4dbb-8ccc-d49778edb43c